[Event "*** Titled Tuesday Blitz"]
[Site "Chess.com"]
[Date "2021.04.20"]
[Round "9"]
[White "KubaGepard"]
[Black "AlexSuv"]
[Result "0-1"]
[WhiteElo "2414"]
[BlackElo "2568"]
[TimeControl "180+1"]
[EndTime "11:45:21 PDT"]
[Termination "AlexSuv won by resignation"]

1. e4 {[%clk 0:03:00.9]} 1... c5 {[%clk 0:02:59]} 2. Nf3 {[%clk 0:03:01.1]} 2...
e6 {[%clk 0:02:58.7]} 3. d4 {[%clk 0:03:01.7]} 3... cxd4 {[%clk 0:02:59.6]} 4.
Nxd4 {[%clk 0:03:02.3]} 4... Nc6 {[%clk 0:02:59.3]} 5. Nc3 {[%clk 0:03:02.8]}
5... Qc7 {[%clk 0:02:59.2]} 6. Be3 {[%clk 0:03:03.2]} 6... a6 {[%clk 0:02:58.4]}
7. a3 {[%clk 0:03:03.4]} 7... Nf6 {[%clk 0:02:56.7]} 8. Be2 {[%clk 0:03:03.2]}
8... b5 {[%clk 0:02:51.5]} 9. Nxc6 {[%clk 0:02:56.8]} 9... dxc6 {[%clk
0:02:51.1]} 10. f4 {[%clk 0:02:56.5]} 10... e5 {[%clk 0:02:45.3]} 11. O-O {[%clk
0:02:46.4]} 11... Bd6 {[%clk 0:02:40.3]} 12. f5 {[%clk 0:02:40.8]} 12... Qe7
{[%clk 0:02:33]} 13. Kh1 {[%clk 0:02:31.6]} 13... Bc5 {[%clk 0:02:29.8]} 14. Bg5
{[%clk 0:02:30.5]} 14... h6 {[%clk 0:02:29.2]} 15. Bh4 {[%clk 0:02:30.4]} 15...
Bb7 {[%clk 0:02:23.1]} 16. Qe1 {[%clk 0:02:18.4]} 16... O-O-O {[%clk 0:02:16.1]}
17. Qg3 {[%clk 0:02:13.5]} 17... Rhg8 {[%clk 0:02:09.5]} 18. Bd3 {[%clk
0:02:13.1]} 18... Bd4 {[%clk 0:02:06.3]} 19. Rab1 {[%clk 0:02:01.5]} 19... c5
{[%clk 0:02:04.2]} 20. Nd5 {[%clk 0:01:38.2]} 20... Bxd5 {[%clk 0:01:56.3]} 21.
exd5 {[%clk 0:01:37.9]} 21... c4 {[%clk 0:01:55.1]} 22. Be2 {[%clk 0:01:21.5]}
22... Qd6 {[%clk 0:01:50.1]} 23. Bf3 {[%clk 0:01:17.7]} 23... Rde8 {[%clk
0:01:37.4]} 24. c3 {[%clk 0:01:16.3]} 24... Bc5 {[%clk 0:01:34]} 25. Rbe1 {[%clk
0:01:11.5]} 25... e4 {[%clk 0:01:17.4]} 26. Qxd6 {[%clk 0:01:04.1]} 26... Bxd6
{[%clk 0:01:18.3]} 27. Bxf6 {[%clk 0:01:03.5]} 27... exf3 {[%clk 0:01:16.1]} 28.
Bd4 {[%clk 0:00:55.4]} 28... fxg2+ {[%clk 0:01:10.4]} 29. Kxg2 {[%clk
0:00:56.3]} 29... Kd7 {[%clk 0:01:08.7]} 30. h3 {[%clk 0:00:53.9]} 30... g6
{[%clk 0:01:08.8]} 31. Rxe8 {[%clk 0:00:49]} 31... Kxe8 {[%clk 0:01:08.6]} 32.
f6 {[%clk 0:00:45.4]} 32... Kd7 {[%clk 0:01:06]} 33. Re1 {[%clk 0:00:44.5]}
33... g5 {[%clk 0:01:01.4]} 34. Kf3 {[%clk 0:00:43.7]} 34... h5 {[%clk
0:01:01.8]} 35. Rg1 {[%clk 0:00:40.8]} 35... Rg6 {[%clk 0:00:55.8]} 36. Rg2
{[%clk 0:00:38.4]} 36... Bf8 {[%clk 0:00:51.7]} 37. Ke4 {[%clk 0:00:37.5]} 37...
Bh6 {[%clk 0:00:41.1]} 38. Be5 {[%clk 0:00:35]} 38... g4 {[%clk 0:00:40.1]} 39.
hxg4 {[%clk 0:00:35.3]} 39... hxg4 {[%clk 0:00:41]} 40. Kf5 {[%clk 0:00:32.6]}
40... Rg5+ {[%clk 0:00:35.4]} 41. Ke4 {[%clk 0:00:32.8]} 41... Rg6 {[%clk
0:00:34.9]} 42. a4 {[%clk 0:00:29.5]} 42... bxa4 {[%clk 0:00:33.4]} 43. Kd4
{[%clk 0:00:29.4]} 43... Bg5 {[%clk 0:00:13.7]} 44. Rxg4 {[%clk 0:00:26.9]}
44... Be3+ {[%clk 0:00:13.8]} 45. Kxe3 {[%clk 0:00:23.2]} 45... Rxg4 {[%clk
0:00:14.7]} 46. Kf3 {[%clk 0:00:19.1]} 46... Rh4 {[%clk 0:00:14.1]} 47. Bg3
{[%clk 0:00:18.5]} 47... Rh6 {[%clk 0:00:13.5]} 48. Be5 {[%clk 0:00:18.5]} 48...
Rh5 {[%clk 0:00:13.7]} 49. Ke4 {[%clk 0:00:17.9]} 49... Rh4+ {[%clk 0:00:12.9]}
50. Kf3 {[%clk 0:00:17.9]} 50... Rh1 {[%clk 0:00:12.7]} 51. Ke4 {[%clk
0:00:17.7]} 51... Rb1 {[%clk 0:00:12.9]} 52. Kd4 {[%clk 0:00:17.5]} 52... Rxb2
{[%clk 0:00:13.5]} 53. Kxc4 {[%clk 0:00:18.2]} 53... a3 {[%clk 0:00:14.2]} 54.
Kd4 {[%clk 0:00:15.6]} 54... a2 {[%clk 0:00:14.8]} 55. c4 {[%clk 0:00:16.2]}
55... a1=Q {[%clk 0:00:15.2]} 0-1

[Event "*** Titled Tuesday Blitz"]
[Site "Chess.com"]
[Date "2021.04.20"]
[Round "9"]
[White "Shahaliyev"]
[Black "Mikasinski"]
[Result "0-1"]
[WhiteElo "2647"]
[BlackElo "2532"]
[TimeControl "180+1"]
[EndTime "11:45:22 PDT"]
[Termination "Mikasinski won by checkmate"]

1. e4 {[%clk 0:03:00.9]} 1... c5 {[%clk 0:03:00.1]} 2. Nf3 {[%clk 0:02:55.6]}
2... d6 {[%clk 0:03:00.1]} 3. d4 {[%clk 0:02:55.6]} 3... cxd4 {[%clk 0:03:00.9]}
4. Nxd4 {[%clk 0:02:56.4]} 4... Nf6 {[%clk 0:03:01.6]} 5. Nc3 {[%clk 0:02:56.8]}
5... g6 {[%clk 0:03:01.8]} 6. Be3 {[%clk 0:02:53.4]} 6... Bg7 {[%clk 0:03:02.5]}
7. Qd2 {[%clk 0:02:53.7]} 7... O-O {[%clk 0:03:03.2]} 8. O-O-O {[%clk
0:02:53.9]} 8... Ng4 {[%clk 0:03:03.3]} 9. Bg5 {[%clk 0:02:53.2]} 9... Nc6
{[%clk 0:03:03.6]} 10. Nb3 {[%clk 0:02:48.9]} 10... a6 {[%clk 0:02:43.5]} 11. f3
{[%clk 0:02:38.3]} 11... Nf6 {[%clk 0:02:38.5]} 12. Bh6 {[%clk 0:02:36.3]} 12...
b5 {[%clk 0:02:33.9]} 13. h4 {[%clk 0:02:35.7]} 13... Be6 {[%clk 0:02:24.7]} 14.
h5 {[%clk 0:02:33.9]} 14... b4 {[%clk 0:02:15]} 15. Nd5 {[%clk 0:02:25.2]} 15...
Bxd5 {[%clk 0:02:10.6]} 16. exd5 {[%clk 0:02:24.3]} 16... Ne5 {[%clk 0:02:10.4]}
17. hxg6 {[%clk 0:02:16.9]} 17... fxg6 {[%clk 0:02:07]} 18. Bxg7 {[%clk
0:02:12.9]} 18... Kxg7 {[%clk 0:02:07.9]} 19. Nd4 {[%clk 0:02:13.4]} 19... Kf7
{[%clk 0:02:02.4]} 20. Nc6 {[%clk 0:01:59.6]} 20... Nxc6 {[%clk 0:02:01.2]} 21.
dxc6 {[%clk 0:02:00.5]} 21... Qa5 {[%clk 0:02:01.7]} 22. Bc4+ {[%clk 0:02:00.4]}
22... Ke8 {[%clk 0:01:52.8]} 23. Rhe1 {[%clk 0:01:49]} 23... d5 {[%clk
0:01:50.3]} 24. Bxd5 {[%clk 0:01:15.8]} 24... Rd8 {[%clk 0:01:46.8]} 25. Qe2
{[%clk 0:01:01.7]} 25... Qc7 {[%clk 0:01:45.9]} 26. Bc4 {[%clk 0:00:37.3]} 26...
Rxd1+ {[%clk 0:01:45.9]} 27. Rxd1 {[%clk 0:00:36.9]} 27... Qxc6 {[%clk
0:01:43.4]} 28. Bxa6 {[%clk 0:00:37.3]} 28... Qc7 {[%clk 0:01:28.2]} 29. Qe6
{[%clk 0:00:35.3]} 29... Rf7 {[%clk 0:01:16.7]} 30. Bc4 {[%clk 0:00:33]} 30...
Rg7 {[%clk 0:00:53.8]} 31. g4 {[%clk 0:00:31.8]} 31... Kf8 {[%clk 0:00:49.3]}
32. Kb1 {[%clk 0:00:28.8]} 32... Ne8 {[%clk 0:00:38.8]} 33. f4 {[%clk
0:00:19.3]} 33... Qc5 {[%clk 0:00:27.7]} 34. Bb3 {[%clk 0:00:17.8]} 34... h5
{[%clk 0:00:22.6]} 35. g5 {[%clk 0:00:16.6]} 35... h4 {[%clk 0:00:20.6]} 36. Rf1
{[%clk 0:00:16.2]} 36... Nd6 {[%clk 0:00:16.3]} 37. a3 {[%clk 0:00:10.8]} 37...
bxa3 {[%clk 0:00:16.3]} 38. Qh3 {[%clk 0:00:11]} 38... axb2 {[%clk 0:00:15.4]}
39. Qxh4 {[%clk 0:00:09.5]} 39... Nc4 {[%clk 0:00:13.7]} 40. Qe1 {[%clk
0:00:04.6]} 40... Qa3 {[%clk 0:00:11.1]} 41. Ba2 {[%clk 0:00:05.2]} 41... Ne3
{[%clk 0:00:09.3]} 42. Rf2 {[%clk 0:00:04.9]} 42... Nd5 {[%clk 0:00:07.7]} 43.
c4 {[%clk 0:00:02.3]} 43... Nc3+ {[%clk 0:00:07.8]} 44. Kc2 {[%clk 0:00:03.1]}
44... Nxa2 {[%clk 0:00:08.5]} 45. Qe5 {[%clk 0:00:02.9]} 45... Nb4+ {[%clk
0:00:08.2]} 46. Kd2 {[%clk 0:00:03.2]} 46... Qd3+ {[%clk 0:00:08.4]} 47. Ke1
{[%clk 0:00:03.2]} 47... b1=Q# {[%clk 0:00:09.1]} 0-1

[Event "*** Titled Tuesday Blitz"]
[Site "Chess.com"]
[Date "2021.04.20"]
[Round "9"]
[White "scarabee43"]
[Black "Sergey85Rodchenkov"]
[Result "1-0"]
[WhiteElo "2640"]
[BlackElo "2505"]
[TimeControl "180+1"]
[EndTime "11:45:23 PDT"]
[Termination "scarabee43 won by resignation"]

1. d4 {[%clk 0:03:00.9]} 1... Nf6 {[%clk 0:02:59]} 2. c4 {[%clk 0:03:01.3]} 2...
e6 {[%clk 0:02:59]} 3. Nf3 {[%clk 0:03:00.1]} 3... b6 {[%clk 0:02:58.6]} 4. a3
{[%clk 0:02:59.9]} 4... Bb7 {[%clk 0:02:58.8]} 5. Bf4 {[%clk 0:03:00.4]} 5...
Ne4 {[%clk 0:02:55.4]} 6. Nbd2 {[%clk 0:02:58.3]} 6... f5 {[%clk 0:02:55.5]} 7.
Nxe4 {[%clk 0:02:54.7]} 7... Bxe4 {[%clk 0:02:54.2]} 8. e3 {[%clk 0:02:54.1]}
8... Be7 {[%clk 0:02:53.7]} 9. Bd3 {[%clk 0:02:54.4]} 9... Bb7 {[%clk
0:02:51.2]} 10. d5 {[%clk 0:02:51.5]} 10... O-O {[%clk 0:02:47.9]} 11. O-O
{[%clk 0:02:51.6]} 11... exd5 {[%clk 0:02:46.2]} 12. Qc2 {[%clk 0:02:40]} 12...
g6 {[%clk 0:02:37.2]} 13. cxd5 {[%clk 0:02:38.4]} 13... Bxd5 {[%clk 0:02:36.3]}
14. Bxc7 {[%clk 0:02:29.9]} 14... Qc8 {[%clk 0:02:27.5]} 15. e4 {[%clk
0:02:20.6]} 15... Be6 {[%clk 0:02:24.5]} 16. exf5 {[%clk 0:02:16.5]} 16... Bxf5
{[%clk 0:02:24.2]} 17. Bxf5 {[%clk 0:02:14.5]} 17... Rxf5 {[%clk 0:02:25.1]} 18.
Qe4 {[%clk 0:02:09.5]} 18... Nc6 {[%clk 0:02:24.1]} 19. Bg3 {[%clk 0:02:06.4]}
19... Bf6 {[%clk 0:02:21.8]} 20. Rad1 {[%clk 0:01:56.8]} 20... Qe8 {[%clk
0:02:16]} 21. Qc4+ {[%clk 0:01:52.6]} 21... Qe6 {[%clk 0:02:12.3]} 22. Qc2
{[%clk 0:01:47.8]} 22... Rf8 {[%clk 0:01:50.8]} 23. Rd6 {[%clk 0:01:46.8]} 23...
Qf7 {[%clk 0:01:50.3]} 24. Rfd1 {[%clk 0:01:45.3]} 24... Rc5 {[%clk 0:01:26.1]}
25. Qd2 {[%clk 0:01:43]} 25... Rd8 {[%clk 0:01:17.8]} 26. b4 {[%clk 0:01:35.2]}
26... Rf5 {[%clk 0:01:16.1]} 27. Rxd7 {[%clk 0:01:18.2]} 27... Rxd7 {[%clk
0:01:14.8]} 28. Qxd7 {[%clk 0:01:18.7]} 28... Qxd7 {[%clk 0:01:15.2]} 29. Rxd7
{[%clk 0:01:19.4]} 29... a5 {[%clk 0:01:13]} 30. Rd6 {[%clk 0:01:18.9]} 30...
axb4 {[%clk 0:00:59.7]} 31. axb4 {[%clk 0:01:05.6]} 31... Nxb4 {[%clk
0:00:58.3]} 32. Rxb6 {[%clk 0:01:06.2]} 32... Nd3 {[%clk 0:00:57]} 33. h3 {[%clk
0:00:59.7]} 33... h5 {[%clk 0:00:53.7]} 34. Rd6 {[%clk 0:00:58]} 34... Nc5
{[%clk 0:00:48.6]} 35. Nd2 {[%clk 0:00:51.7]} 35... Kf7 {[%clk 0:00:47.5]} 36.
f3 {[%clk 0:00:50.8]} 36... h4 {[%clk 0:00:43.3]} 37. Bf2 {[%clk 0:00:50.4]}
37... Ne6 {[%clk 0:00:42.1]} 38. Ne4 {[%clk 0:00:49.2]} 38... Be7 {[%clk
0:00:42.6]} 39. Rd7 {[%clk 0:00:46.7]} 39... Ke8 {[%clk 0:00:43.1]} 40. Ra7
{[%clk 0:00:46.3]} 40... Nf4 {[%clk 0:00:42.1]} 41. Kh2 {[%clk 0:00:29.8]} 41...
Rb5 {[%clk 0:00:38.7]} 42. Bxh4 {[%clk 0:00:28.2]} 42... g5 {[%clk 0:00:21.2]}
43. Bxg5 {[%clk 0:00:26.3]} 43... Rxg5 {[%clk 0:00:18.6]} 44. Rxe7+ {[%clk
0:00:26.5]} 44... Kxe7 {[%clk 0:00:18]} 45. Nxg5 {[%clk 0:00:27.1]} 45... Kf6
{[%clk 0:00:18.9]} 46. Ne4+ {[%clk 0:00:27.2]} 46... Kf5 {[%clk 0:00:19.8]} 47.
g3 {[%clk 0:00:27.4]} 47... Nd3 {[%clk 0:00:19.4]} 48. Kg2 {[%clk 0:00:27.1]}
48... Ne5 {[%clk 0:00:19.1]} 49. h4 {[%clk 0:00:26.4]} 49... Ng6 {[%clk
0:00:18.6]} 50. h5 {[%clk 0:00:25.7]} 50... Ne5 {[%clk 0:00:18.8]} 51. Nf2
{[%clk 0:00:22.4]} 51... Kg5 {[%clk 0:00:17.9]} 52. f4+ {[%clk 0:00:22.2]} 1-0

[Event "*** Titled Tuesday Blitz"]
[Site "Chess.com"]
[Date "2021.04.20"]
[Round "9"]
[White "Vaathi_Coming"]
[Black "Supernotar"]
[Result "1/2-1/2"]
[WhiteElo "2894"]
[BlackElo "2693"]
[TimeControl "180+1"]
[EndTime "11:45:26 PDT"]
[Termination "Game drawn by repetition"]

1. Nf3 {[%clk 0:03:00.9]} 1... d5 {[%clk 0:02:57.9]} 2. c4 {[%clk 0:03:00.7]}
2... e6 {[%clk 0:02:57.6]} 3. cxd5 {[%clk 0:03:01.5]} 3... exd5 {[%clk
0:02:57.6]} 4. d4 {[%clk 0:03:02.4]} 4... Nf6 {[%clk 0:02:56.1]} 5. Nc3 {[%clk
0:03:03.3]} 5... Be7 {[%clk 0:02:55.1]} 6. Bg5 {[%clk 0:03:03.9]} 6... c6 {[%clk
0:02:54.4]} 7. e3 {[%clk 0:03:04.4]} 7... O-O {[%clk 0:02:53.4]} 8. Bd3 {[%clk
0:03:04.7]} 8... Nbd7 {[%clk 0:02:52.8]} 9. Qc2 {[%clk 0:03:04.6]} 9... Re8
{[%clk 0:02:50.9]} 10. h4 {[%clk 0:03:04.2]} 10... Nf8 {[%clk 0:02:47.5]} 11.
O-O-O {[%clk 0:03:00]} 11... Be6 {[%clk 0:02:45]} 12. Ne5 {[%clk 0:02:59.1]}
12... c5 {[%clk 0:02:31.2]} 13. f4 {[%clk 0:02:56.7]} 13... c4 {[%clk
0:02:26.6]} 14. Be2 {[%clk 0:02:54.3]} 14... b5 {[%clk 0:01:47.5]} 15. Nc6
{[%clk 0:02:49.8]} 15... Qc7 {[%clk 0:01:46.3]} 16. Nxe7+ {[%clk 0:02:49.9]}
16... Rxe7 {[%clk 0:01:09.9]} 17. Bxf6 {[%clk 0:02:23.4]} 17... gxf6 {[%clk
0:01:10.8]} 18. Bf3 {[%clk 0:02:23.3]} 18... Rd8 {[%clk 0:00:56.3]} 19. Nxb5
{[%clk 0:02:18.5]} 19... Qd7 {[%clk 0:00:54]} 20. Nc3 {[%clk 0:02:19.4]} 20...
f5 {[%clk 0:00:52.4]} 21. Rdg1 {[%clk 0:02:08.1]} 21... Kh8 {[%clk 0:00:52.4]}
22. h5 {[%clk 0:02:06.8]} 22... h6 {[%clk 0:00:50.2]} 23. Rh4 {[%clk 0:02:05.3]}
23... Nh7 {[%clk 0:00:47.9]} 24. Rh3 {[%clk 0:01:55.3]} 24... Rg8 {[%clk
0:00:44.7]} 25. Qf2 {[%clk 0:01:55.3]} 25... Qd6 {[%clk 0:00:39.4]} 26. Qh4
{[%clk 0:01:53.3]} 26... Rb7 {[%clk 0:00:36.1]} 27. Rd1 {[%clk 0:01:42.8]} 27...
Rgb8 {[%clk 0:00:33.8]} 28. Rd2 {[%clk 0:01:43]} 28... Qa6 {[%clk 0:00:32.6]}
29. Kd1 {[%clk 0:01:14.6]} 29... Qa5 {[%clk 0:00:27.2]} 30. Qf2 {[%clk
0:00:53.8]} 30... Nf6 {[%clk 0:00:26.6]} 31. Rc2 {[%clk 0:00:45.2]} 31... Ng4
{[%clk 0:00:23.7]} 32. Qd2 {[%clk 0:00:39.9]} 32... Qb4 {[%clk 0:00:12.5]} 33.
Nxd5 {[%clk 0:00:30.7]} 33... Qxd2+ {[%clk 0:00:07.6]} 34. Kxd2 {[%clk
0:00:30.1]} 34... Rxb2 {[%clk 0:00:07.7]} 35. Nc3 {[%clk 0:00:13.5]} 35... Rxc2+
{[%clk 0:00:07]} 36. Kxc2 {[%clk 0:00:14.4]} 36... Nxe3+ {[%clk 0:00:07.5]} 37.
Kd2 {[%clk 0:00:15]} 37... Ng4 {[%clk 0:00:07.3]} 38. d5 {[%clk 0:00:13]} 38...
Bd7 {[%clk 0:00:07.6]} 39. Rh1 {[%clk 0:00:07.8]} 39... Rb2+ {[%clk 0:00:07.1]}
40. Kc1 {[%clk 0:00:08]} 40... Rf2 {[%clk 0:00:06.7]} 41. Re1 {[%clk 0:00:08.1]}
41... Kg7 {[%clk 0:00:05.9]} 42. Re7 {[%clk 0:00:06.3]} 42... Bc8 {[%clk
0:00:05.9]} 43. Rxa7 {[%clk 0:00:05.8]} 43... Ne3 {[%clk 0:00:04.6]} 44. Nb5
{[%clk 0:00:03]} 44... Rc2+ {[%clk 0:00:04.4]} 45. Kb1 {[%clk 0:00:02.9]} 45...
c3 {[%clk 0:00:04.7]} 46. Nd6 {[%clk 0:00:03.1]} 46... Rb2+ {[%clk 0:00:05]} 47.
Kc1 {[%clk 0:00:03.7]} 47... Rc2+ {[%clk 0:00:05.5]} 48. Kb1 {[%clk 0:00:04.3]}
48... Rb2+ {[%clk 0:00:06]} 49. Kc1 {[%clk 0:00:04.7]} 49... Rc2+ {[%clk
0:00:06.5]} 50. Kb1 {[%clk 0:00:05.2]} 1/2-1/2

[Event "*** Titled Tuesday Blitz"]
[Site "Chess.com"]
[Date "2021.04.20"]
[Round "9"]
[White "dpopadic"]
[Black "Matols"]
[Result "1-0"]
[WhiteElo "2373"]
[BlackElo "2263"]
[TimeControl "180+1"]
[EndTime "11:45:26 PDT"]
[Termination "dpopadic won by checkmate"]

1. e4 {[%clk 0:03:00.9]} 1... e6 {[%clk 0:03:00]} 2. Nf3 {[%clk 0:02:59.8]} 2...
d5 {[%clk 0:02:59.9]} 3. e5 {[%clk 0:02:59]} 3... c5 {[%clk 0:02:59]} 4. b4
{[%clk 0:02:59.1]} 4... cxb4 {[%clk 0:02:58.2]} 5. d4 {[%clk 0:02:58.9]} 5...
Nc6 {[%clk 0:02:57.1]} 6. a3 {[%clk 0:02:59]} 6... Bd7 {[%clk 0:02:55.3]} 7.
axb4 {[%clk 0:02:58.9]} 7... Bxb4+ {[%clk 0:02:54.9]} 8. c3 {[%clk 0:02:58.8]}
8... Be7 {[%clk 0:02:54.1]} 9. Bd3 {[%clk 0:02:58.6]} 9... Nh6 {[%clk
0:02:51.4]} 10. O-O {[%clk 0:02:46.6]} 10... Nf5 {[%clk 0:02:50.8]} 11. Re1
{[%clk 0:02:45.3]} 11... O-O {[%clk 0:02:48.9]} 12. Nbd2 {[%clk 0:02:27.6]}
12... Rc8 {[%clk 0:02:38.7]} 13. Nf1 {[%clk 0:02:26.9]} 13... a6 {[%clk
0:02:32]} 14. Ng3 {[%clk 0:02:13.4]} 14... Na7 {[%clk 0:02:15.9]} 15. Bd2 {[%clk
0:02:09]} 15... Nxg3 {[%clk 0:02:10.3]} 16. hxg3 {[%clk 0:02:08.5]} 16... Bb5
{[%clk 0:02:09.1]} 17. Bb1 {[%clk 0:02:05.8]} 17... Bc4 {[%clk 0:02:03]} 18. Nh2
{[%clk 0:02:00.2]} 18... Nb5 {[%clk 0:01:54.8]} 19. Qh5 {[%clk 0:01:53.2]} 19...
g6 {[%clk 0:01:49]} 20. Qh3 {[%clk 0:01:52.6]} 20... f5 {[%clk 0:01:10.5]} 21.
exf6 {[%clk 0:01:50]} 21... Bxf6 {[%clk 0:01:07.1]} 22. Qxe6+ {[%clk 0:01:46.1]}
22... Kh8 {[%clk 0:01:02.5]} 23. Ng4 {[%clk 0:01:45]} 23... Bg7 {[%clk 0:01:00]}
24. Bh6 {[%clk 0:01:23.9]} 24... Qd6 {[%clk 0:00:37.7]} 25. Qe3 {[%clk
0:01:09.2]} 25... Rf7 {[%clk 0:00:24.8]} 26. Bxg7+ {[%clk 0:00:49.5]} 26... Kxg7
{[%clk 0:00:24.3]} 27. Qh6+ {[%clk 0:00:46.1]} 27... Kg8 {[%clk 0:00:24.3]} 28.
Ne5 {[%clk 0:00:43.7]} 28... Rg7 {[%clk 0:00:20.5]} 29. Re3 {[%clk 0:00:26.9]}
29... Rf8 {[%clk 0:00:20]} 30. Ba2 {[%clk 0:00:21.1]} 30... Qf6 {[%clk
0:00:17.4]} 31. Rf3 {[%clk 0:00:21]} 31... Qe7 {[%clk 0:00:16.8]} 32. Rxf8+
{[%clk 0:00:20.2]} 32... Qxf8 {[%clk 0:00:16.7]} 33. Nxc4 {[%clk 0:00:19]} 33...
dxc4 {[%clk 0:00:16.9]} 34. Bxc4+ {[%clk 0:00:18.4]} 34... Kh8 {[%clk
0:00:17.1]} 35. Bxb5 {[%clk 0:00:17.9]} 35... axb5 {[%clk 0:00:16.5]} 36. Re1
{[%clk 0:00:17.6]} 36... Rf7 {[%clk 0:00:15.7]} 37. Qxf8+ {[%clk 0:00:16.6]}
37... Rxf8 {[%clk 0:00:15.9]} 38. Re7 {[%clk 0:00:16.3]} 38... Rc8 {[%clk
0:00:15.3]} 39. Rxb7 {[%clk 0:00:16.1]} 39... Rxc3 {[%clk 0:00:15.4]} 40. Rxb5
{[%clk 0:00:15.9]} 40... Rc1+ {[%clk 0:00:15.5]} 41. Kh2 {[%clk 0:00:15.3]}
41... Rd1 {[%clk 0:00:15.7]} 42. Rd5 {[%clk 0:00:14.3]} 42... Kg7 {[%clk
0:00:15.6]} 43. Rd7+ {[%clk 0:00:14.3]} 43... Kh6 {[%clk 0:00:12.5]} 44. f4
{[%clk 0:00:14.2]} 44... Rd2 {[%clk 0:00:10.5]} 45. g4 {[%clk 0:00:12.9]} 45...
Rd3 {[%clk 0:00:05.6]} 46. g3 {[%clk 0:00:10]} 46... Rd2+ {[%clk 0:00:04.2]} 47.
Kh3 {[%clk 0:00:09.9]} 47... Rd3 {[%clk 0:00:03.7]} 48. g5+ {[%clk 0:00:09.2]}
48... Kh5 {[%clk 0:00:01.9]} 49. Rxh7# {[%clk 0:00:09.1]} 1-0

[Event "*** Titled Tuesday Blitz"]
[Site "Chess.com"]
[Date "2021.04.20"]
[Round "9"]
[White "Taktikmonster"]
[Black "Pertinhez76"]
[Result "1-0"]
[WhiteElo "2416"]
[BlackElo "2074"]
[TimeControl "180+1"]
[EndTime "11:45:27 PDT"]
[Termination "Taktikmonster won on time"]

1. e4 {[%clk 0:03:00.9]} 1... e6 {[%clk 0:02:59.5]} 2. d4 {[%clk 0:03:00.8]}
2... d5 {[%clk 0:03:00]} 3. Nd2 {[%clk 0:03:01.7]} 3... Nf6 {[%clk 0:02:59.3]}
4. e5 {[%clk 0:03:02.1]} 4... Nfd7 {[%clk 0:02:59.5]} 5. Bd3 {[%clk 0:03:02.7]}
5... c5 {[%clk 0:02:59.5]} 6. c3 {[%clk 0:03:03.3]} 6... Nc6 {[%clk 0:02:59.7]}
7. Ne2 {[%clk 0:03:03.7]} 7... cxd4 {[%clk 0:02:56.8]} 8. cxd4 {[%clk
0:03:04.6]} 8... f6 {[%clk 0:02:57.1]} 9. exf6 {[%clk 0:03:05.5]} 9... Nxf6
{[%clk 0:02:56.7]} 10. O-O {[%clk 0:03:05.9]} 10... Bd6 {[%clk 0:02:57]} 11. Nf3
{[%clk 0:03:05]} 11... Qc7 {[%clk 0:02:57.3]} 12. h3 {[%clk 0:03:04.8]} 12...
O-O {[%clk 0:02:55.9]} 13. Be3 {[%clk 0:03:05.4]} 13... Bd7 {[%clk 0:02:52.3]}
14. Re1 {[%clk 0:03:05]} 14... Be8 {[%clk 0:02:49.6]} 15. Ng5 {[%clk 0:03:04.4]}
15... Bf7 {[%clk 0:02:39]} 16. g3 {[%clk 0:03:03.9]} 16... h6 {[%clk 0:02:36.4]}
17. Nxf7 {[%clk 0:03:00.2]} 17... Rxf7 {[%clk 0:02:36.6]} 18. Nf4 {[%clk
0:02:55.7]} 18... Re7 {[%clk 0:02:20.8]} 19. Rc1 {[%clk 0:02:43.7]} 19... Qb6
{[%clk 0:02:17.9]} 20. Nh5 {[%clk 0:02:18.4]} 20... Rf8 {[%clk 0:02:11.1]} 21.
Bg6 {[%clk 0:01:52.7]} 21... Qxb2 {[%clk 0:01:41.7]} 22. Rb1 {[%clk 0:01:28.7]}
22... Qxa2 {[%clk 0:01:41.3]} 23. Nxf6+ {[%clk 0:01:28.5]} 23... Rxf6 {[%clk
0:01:36.9]} 24. Qg4 {[%clk 0:01:28.8]} 24... Qa5 {[%clk 0:01:20.5]} 25. Qh5
{[%clk 0:00:58.1]} 25... Qd8 {[%clk 0:01:16]} 26. Bg5 {[%clk 0:00:51.9]} 26...
Rxg6 {[%clk 0:00:59.6]} 27. Qxg6 {[%clk 0:00:47.1]} 27... hxg5 {[%clk
0:00:56.5]} 28. Rxe6 {[%clk 0:00:47.5]} 28... Rxe6 {[%clk 0:00:48.1]} 29. Qxe6+
{[%clk 0:00:48.4]} 29... Kh7 {[%clk 0:00:46.5]} 30. Rxb7 {[%clk 0:00:32.7]}
30... Nxd4 {[%clk 0:00:36.2]} 31. Qxd5 {[%clk 0:00:32.1]} 31... Qf6 {[%clk
0:00:29.7]} 32. Qe4+ {[%clk 0:00:22]} 32... Kg8 {[%clk 0:00:20.2]} 33. Rxa7
{[%clk 0:00:21.9]} 33... Bf8 {[%clk 0:00:18.4]} 34. Ra5 {[%clk 0:00:15]} 34...
Nf3+ {[%clk 0:00:15.3]} 35. Kg2 {[%clk 0:00:14.3]} 35... Nd4 {[%clk 0:00:13.3]}
36. Qd5+ {[%clk 0:00:10.4]} 36... Kh7 {[%clk 0:00:13.4]} 37. Qxg5 {[%clk
0:00:09.9]} 37... Qc6+ {[%clk 0:00:11.4]} 38. Qd5 {[%clk 0:00:09]} 38... Qxd5+
{[%clk 0:00:10.4]} 39. Rxd5 {[%clk 0:00:09.9]} 39... Ne6 {[%clk 0:00:10]} 40.
Kf3 {[%clk 0:00:09.2]} 40... Kg6 {[%clk 0:00:09.1]} 41. Ke4 {[%clk 0:00:09.2]}
41... Kf7 {[%clk 0:00:09.5]} 42. f4 {[%clk 0:00:08.5]} 42... Nc5+ {[%clk
0:00:07.7]} 43. Kf3 {[%clk 0:00:08.5]} 43... g6 {[%clk 0:00:07.1]} 44. Kg4
{[%clk 0:00:06.8]} 44... Ne6 {[%clk 0:00:06.6]} 45. Ra5 {[%clk 0:00:06]} 45...
Be7 {[%clk 0:00:05]} 46. Ra6 {[%clk 0:00:06.3]} 46... Nd4 {[%clk 0:00:04]} 47.
h4 {[%clk 0:00:05.6]} 47... Nf5 {[%clk 0:00:03.1]} 48. h5 {[%clk 0:00:03.1]} 1-0